[Event "41st Amateur D7"]
[Site "ChessGUI4"]
[Date "2013.07.09"]
[Round "24.1"]
[White "ChessKiss 1.7 64-bit"]
[Black "Carballo 0.8"]
[Result "1-0"]
[BlackElo "2273"]
[ECO "C11"]
[EventDate "2013.??.??"]
[TimeControl "40/1500:40/1500:40/1500"]
[WhiteElo "2214"]

{ i5 Quad } 1.e4 { [%eval 0,1] [%emt 0:00:00] } 1...e6
{ [%eval 0,1] [%emt 0:00:00] } 2.d4 { [%eval 0,1] [%emt 0:00:00] } 2...d5
{ [%eval 0,1] [%emt 0:00:00] } 3.Nc3 { [%eval 0,1] [%emt 0:00:00] } 3...Nf6
{ [%eval 0,1] [%emt 0:00:00] } 4.e5 { [%eval 0,1] [%emt 0:00:00] } 4...Nfd7
{ [%eval 0,1] [%emt 0:00:00] } 5.f4 { [%eval 0,1] [%emt 0: 00:00] } 5...c5
{ [%eval 0,1] [%emt 0:00:00] } 6.Nf3 { [%eval 0,1] [%emt 0:00:00] } 6...Nc6
{ [%eval 0,1] [%emt 0:00:00] } 7.Be3 { [%eval 0,1] [%emt 0:00:00] } 7...cxd4
{ [%eval 0,1] [%emt 0:00:00] } 8.Nxd4 { [%eval 0,1] [%emt 0:00:00] } 8...Bc5
{ [%eval 0,1] [%emt 0:00:00] } 9.Qd2 { [%eval 5,12] [%emt 0:00:43] } 9...O-O
{ [%eval 9,13] [%emt 0: 00:37] (O-O) } 10.O-O-O
{ [%eval 10,12] [%emt 0:00:42] (Be2) } 10...Bxd4
{ [%eval 15, 13] [%emt 0:00:36] (Nxd4) } 11.Bxd4
{ [%eval 4,14] [%emt 0:00:40] (Bxd4) } 11...f6
{ [%eval 10,14] [%emt 0:00:35] (Nxd4) } 12.exf6
{ [%eval 48,13] [%emt 0:00:39] (exf6) } 12...Nxf6
{ [%eval 9,15] [%emt 0:00:34] (Nxf6) } 13.Bf2
{ [%eval 44,12] [%emt 0:00:38] (Be2) } 13...Qd6
{ [%eval 12,12] [%emt 0:00:33] (b6) } 14.Be2
{ [%eval 61,12] [%emt 0:00:37] (Be2) } 14...Bd7
{ [%eval 17,12] [%emt 0:00:32] (Kh8) } 15.Kb1
{ [%eval 56,11] [%emt 0:00:36] (Kb1) } 15...a6
{ [%eval 14,12] [%emt 0:00:32] (Kh8) } 16.Bf3
{ [%eval 35,10] [%emt 0:00:35] (Rhe1) } 16...Ne7
{ [%eval 6,13] [%emt 0:00:31] (b5) } 17.g4
{ [%eval 97,10] [%emt 0:00:34] (Rhe1) } 17...Rac8
{ [%eval 5,12] [%emt 0:00: 30] (Kh8) } 18.Rdg1
{ [%eval 95,10] [%emt 0:00:31] (Rhe1) } 18...Ng6
{ [%eval 45,12] [%emt 0:00:29] (Kh8) } 19.g5
{ [%eval 94,10] [%emt 0:00:31] (Bg3) } 19...Ne8
{ [%eval 52,14] [%emt 0:00:29] (Ne8) } 20.Bg3
{ [%eval 52,11] [%emt 0:00:31] (Bg3) } 20...Qb4
{ [%eval 52,12] [%emt 0:00:28] (Nxf4) } 21.a3
{ [%eval 78,11] [%emt 0:00:30] (a3) } 21...Qa5
{ [%eval 39,13] [%emt 0:00:27] (Qa5) } 22.Be2
{ [%eval 51,11] [%emt 0:00:30] (Rd1) } 22...Nd6
{ [%eval 65,13] [%emt 0:00:26] (Nd6) } 23.h4
{ [%eval 12,11] [%emt 0: 00:28] (Rd1) } 23...Qb6
{ [%eval 91,12] [%emt 0:00:26] (Nc4) } 24.h5
{ [%eval 39,11] [%emt 0:00:30] (Bd3) } 24...Ne7
{ [%eval 75,13] [%emt 0:00:25] (Ne7) } 25.h6
{ [%eval 63,11] [%emt 0:00:26] (Bd3) } 25...g6
{ [%eval 77,11] [%emt 0:00:24] (g6) } 26.Bd3
{ [%eval 50,11] [%emt 0:00:26] (Bd3) } 26...Qd4
{ [%eval 70,13] [%emt 0:00:24] (d4) } 27.Ne2
{ [%eval 62,11] [%emt 0:00:25] (Rd1) } 27...Qb6
{ [%eval 54,13] [%emt 0:00:23] (Ne4) } 28.Rg2
{ [%eval 66,11] [%emt 0:00:25] (Qb4) } 28...d4
{ [%eval 64,12] [%emt 0: 00:23] (Nef5) } 29.Bf2
{ [%eval 27,10] [%emt 0:00:23] (Re1) } 29...Bc6
{ [%eval 92,14] [%emt 0:00:22] (Bc6) } 30.Bxd4
{ [%eval 10,12] [%emt 0:00:22] (Bxd4) } 30...Qc7
{ [%eval 90,15] [%emt 0:00:21] (Qd8) } 31.Nc3
{ [%eval -3,12] [%emt 0:00:25] (Rgg1) } 31...Bxg2
{ [%eval 82,14] [%emt 0:00:21] (Bxg2) } 32.Qxg2
{ [%eval -5,12] [%emt 0:00:35] (Qxg2) } 32...Nef5
{ [%eval 82,12] [%emt 0:00:20] (Qc6) } 33.Be5
{ [%eval 68,11] [%emt 0:00:20] (Be5) } 33...Qb6
{ [%eval 55,13] [%emt 0:00:20] (Qc6) } 34.Ne4
{ [%eval 41,10] [%emt 0:00:20] (Re1) } 34...Nxe4
{ [%eval 66,13] [%emt 0:00:19] (Nxe4) } 35.Bxe4
{ [%eval 32,11] [%emt 0:00:19] (Bxe4) } 35...Rfd8
{ [%eval 68,13] [%emt 0:00:19] (Rfd8) } 36.Rh3
{ [%eval 72,11] [%emt 0:00:17] (Re1) } 36...Rd1+
{ [%eval 30,13] [%emt 0:00:18] (Ne3) } 37.Ka2
{ [%eval 1,1] [%emt 0:00:00] (Ka2) } 37...Qg1
{ [%eval 31,13] [%emt 0:00:18] } 38.Qxg1
{ [%eval 238,15] [%emt 0:00:17] (Qxg1) } 38...Rxg1
{ [%eval -63,14] [%emt 0:00:17] (Rxg1) } 39.Bxb7
{ [%eval 242,14] [%emt 0:00:18] (Rd3) } 39...Rxc2
{ [%eval -9,14] [%emt 0:00:17] (Rxc2) } 40.Rd3
{ [%eval 267,13] [%emt 0:00:17] (Bxa6) } 40...Re2
{ [%eval -141,13] [%emt 0:00:17] (a5) } 41.Rd8+
{ [%eval 406,14] [%emt 0:00:57] (Bc8) } 41...Kf7
{ [%eval -174,18] [%emt 0:00: 54] (Kf7) } 42.Bc3
{ [%eval 454,14] [%emt 0:00:57] (Rd7) } 42...a5
{ [%eval -184,14] [%emt 0:00:52] (a5) } 43.Bxa5
{ [%eval 480,14] [%emt 0:00:58] (Rh8) } 43...Ke7
{ [%eval -193,15] [%emt 0:00:51] (Rh2) } 44.Rh8
{ [%eval 477,13] [%emt 0:00:54] (Rh8) } 44...Rc1
{ [%eval -203,13] [%emt 0:00:50] (e5) } 45.Bb4+
{ [%eval 666,14] [%emt 0:00:53] (Rxh7) } 45...Kd7
{ [%eval -308,17] [%emt 0:00:48] (Kd7) } 46.Rxh7+
{ [%eval 712,14] [%emt 0:00:51] (Rxh7) } 46...Ke8
{ [%eval -322,16] [%emt 0:00:47] (Ke8) } 47.Ba6
{ [%eval 750,15] [%emt 0:00:50] (Ba6) } 47...Rh2
{ [%eval -322,15] [%emt 0: 00:46] (Rh2) } 48.Bb5+
{ [%eval 819,15] [%emt 0:00:48] (Bb5) } 48...Kd8
{ [%eval -552, 19] [%emt 0:00:45] (Kd8) } 49.Ba5+
{ [%eval 816,15] [%emt 0:00:47] (Ba5) } 49...Kc8
{ [%eval -661,19] [%emt 0:00:44] (Kc8) } 50.Ba6+
{ [%eval 861,15] [%emt 0:00:46] (Ba6) } 50...Kb8
{ [%eval -640,19] [%emt 0:00:43] (Kb8) } 51.Bb6
{ [%eval 957,16] [%emt 0:00:44] (Bb6) } 51...Nd6
{ [%eval -666,17] [%emt 0:00:42] (Nd6) } 1-0

[Event "41st Amateur D7"]
[Site "ChessGUI4"]
[Date "2013.07.09"]
[Round "24.2"]
[White "Shallow 1.0 64-bit"]
[Black "FireFly 2.6.0 64-bit"]
[Result "0-1"]
[BlackElo "2258"]
[ECO "A04"]
[EventDate "2013.??.??"]
[TimeControl "40/1500:40/1500:40/1500"]
[WhiteElo "2200"]

{ i5 Quad } 1.Nf3 { [%eval 0,1] [%emt 0:00:00] } 1...b6
{ [%eval 0,1] [%emt 0:00:00] } 2.g3 { [%eval 0,1] [%emt 0:00:00] } 2...Bb7
{ [%eval 0,1] [%emt 0:00:00] } 3.Bg2 { [%eval 0,1] [%emt 0:00:00] } 3...e5
{ [%eval 0,1] [%emt 0:00:00] } 4.c4 { [%eval 0,1] [%emt 0:00:00] } 4...g6
{ [%eval 0,1] [%emt 0:00:00] } 5.d4 { [%eval 0,1] [%emt 0:00: 00] } 5...exd4
{ [%eval 0,1] [%emt 0:00:00] } 6.Qxd4 { [%eval 0,1] [%emt 0:00:00] } 6...Nf6
{ [%eval 0,1] [%emt 0:00:00] } 7.Nc3 { [%eval 0,1] [%emt 0:00:00] } 7...Bg7
{ [%eval 0, 1] [%emt 0:00:00] } 8.O-O { [%eval 0,1] [%emt 0:00:00] } 8...Nc6
{ [%eval 0,1] [%emt 0:00:00] } 9.Qe3+ { [%eval 5,13] [%emt 0:00:42] } 9...Ne7
{ [%eval -62,11] [%emt 0:00: 57] (Ne7) } 10.c5
{ [%eval 3,13] [%emt 0:00:42] (Qd3) } 10...O-O
{ [%eval -28,11] [%emt 0:00:56] (O-O) } 11.cxb6
{ [%eval 2,14] [%emt 0:00:42] (Rd1) } 11...axb6
{ [%eval -6,11] [%emt 0:00:56] (axb6) } 12.Qd3
{ [%eval 1,13] [%emt 0:00:42] (Qd3) } 12...Ned5
{ [%eval -5,11] [%emt 0:00:55] (d6) } 13.Nxd5
{ [%eval 0,12] [%emt 0:00: 42] (Bg5) } 13...Bxd5
{ [%eval 4,11] [%emt 0:00:45] (Nxd5) } 14.a3
{ [%eval -5,13] [%emt 0:00:42] (Bg5) } 14...Be4
{ [%eval 16,11] [%emt 0:00:45] (Be4) } 15.Qc4
{ [%eval -6,13] [%emt 0:00:42] (Qc4) } 15...d5
{ [%eval 14,11] [%emt 0:00:44] (d5) } 16.Qb3
{ [%eval -8,14] [%emt 0:00:42] (Qb3) } 16...Nd7
{ [%eval 34,11] [%emt 0:00:44] (c5) } 17.Bg5
{ [%eval -11,13] [%emt 0:00:42] (Bg5) } 17...Nc5
{ [%eval 60,12] [%emt 0:00: 43] (Nc5) } 18.Qa2
{ [%eval -24,14] [%emt 0:00:42] (Qb5) } 18...Qd7
{ [%eval 74,11] [%emt 0:00:43] (Qd7) } 19.Rad1
{ [%eval -42,13] [%emt 0:00:42] (Rad1) } 19...Qb5
{ [%eval 91,11] [%emt 0:00:43] (Qb5) } 20.Rd2
{ [%eval -99,13] [%emt 0:00:42] (Be7) } 20...Nb3
{ [%eval 192,12] [%emt 0:00:42] (Rfe8) } 21.Rdd1
{ [%eval -91,13] [%emt 0:00:42] (Rdd1) } 21...c6
{ [%eval 196,12] [%emt 0:00:42] (Rfe8) } 22.Bf4
{ [%eval -106,13] [%emt 0:00:42] (Ne1) } 22...Rfe8
{ [%eval 217,11] [%emt 0:00:42] (Rfe8) } 23.Be3
{ [%eval -107,13] [%emt 0:00:42] (Rde1) } 23...Bc2
{ [%eval 234,12] [%emt 0:00:41] (Na5) } 24.Rde1
{ [%eval -111,14] [%emt 0:00:42] (Rde1) } 24...d4
{ [%eval 244,11] [%emt 0:00:41] (h6) } 25.Bf4
{ [%eval -108,14] [%emt 0:00:42] (Bf4) } 25...h6
{ [%eval 240,11] [%emt 0:00:40] (h6) } 26.h4
{ [%eval -98,13] [%emt 0: 00:42] (h4) } 26...Re6
{ [%eval 232,11] [%emt 0:00:40] (Re6) } 27.Kh1
{ [%eval -128,12] [%emt 0:01:08] (Nd2) } 27...Rxe2
{ [%eval 280,11] [%emt 0:00:40] (Rxe2) } 28.Rxe2
{ [%eval -157,14] [%emt 0:00:41] (Rxe2) } 28...Qxe2
{ [%eval 314,11] [%emt 0:00:39] (Qxe2) } 29.Kg1
{ [%eval -157,12] [%emt 0:00:54] (Kg1) } 29...Re8
{ [%eval 341,12] [%emt 0:00:38] (Re8) } 30.Kh2
{ [%eval -174,12] [%emt 0:00:53] (Kh2) } 30...Re6
{ [%eval 363,12] [%emt 0:00:37] (Re6) } 31.Kh1
{ [%eval -175,13] [%emt 0:00:52] (Ng1) } 31...d3
{ [%eval 377,12] [%emt 0:00:23] (c5) } 32.Ng1
{ [%eval -265,14] [%emt 0:00:38] (Ng1) } 32...Qh5
{ [%eval 407,12] [%emt 0:00:24] (Qh5) } 33.Bf3
{ [%eval -302, 14] [%emt 0:00:38] (Nf3) } 33...Qf5
{ [%eval 512,11] [%emt 0:00:24] (Qf5) } 34.Be3
{ [%eval -312,13] [%emt 0:00:38] (Be3) } 34...g5
{ [%eval 493,11] [%emt 0:00:24] (d2) } 35.g4
{ [%eval -251,14] [%emt 0:00:38] (g4) } 35...Qf6
{ [%eval 478,13] [%emt 0:00:25] (Qe5) } 36.hxg5
{ [%eval -265,13] [%emt 0:00:38] (hxg5) } 36...hxg5
{ [%eval 436,12] [%emt 0:00:25] (hxg5) } 37.Kh2
{ [%eval -325,12] [%emt 0:00:38] (Kg2) } 37...Rxe3
{ [%eval 520,12] [%emt 0:00:21] (d2) } 38.fxe3
{ [%eval -483,14] [%emt 0:00:38] (fxe3) } 38...Nd2
{ [%eval 658,13] [%emt 0:00:21] (Nd2) } 39.Rf2
{ [%eval -539,14] [%emt 0:00:38] (Rf2) } 39...Ne4
{ [%eval 828,13] [%emt 0:00:22] (Ne4) } 40.Kg2
{ [%eval -565,14] [%emt 0:00:38] (Rf1) } 40...Nxf2
{ [%eval 932,13] [%emt 0:00:23] (Nxf2) } 41.b4
{ [%eval -630,14] [%emt 0:00:37] (Qc4) } 0-1